Workbook

Sheet Afkast
A1: Handelspris - Afkastmetoden
A4: Ejendom:
A6: Adresse:
A9: Beregning af afkast
A11: Dækningsbidrag | D11: DB pr. enhed | H11: Note
A13: 101 | B13: ha á | D13: 4000 | E13: kr | F13: =D13*A13 -> 404000 | G13: kr | H13: 1
A14: 301 | B14: årssøer á | D14: 5000 | E14: kr | F14: =D14*A14 -> 1505000 | G14: kr | H14: 2
B15: prod. slagtesvin á | E15: kr | F15: 0 | G15: kr | H15: 3
A16: 100 | B16: malkekøer med opdræt á | D16: 11000 | E16: kr | F16: 1100000 | G16: kr | H16: 4
B17: slagtekalve á | E17: kr | F17: 0 | G17: kr | H17: 5
E18: kr | F18: =D18*A18 -> 0 | G18: kr | H18: 6
E19: kr | F19: =D19*A19 -> 0 | G19: kr | H19: 7
E20: kr | F20: 0 | G20: kr | H20: 8
D21: 152000 | E21: kr | F21: 0 | G21: kr | H21: 9
A23: Dækningsbidrag ialt | E23: = | F23: =SUM(F13:F21) -> 3009000 | G23: kr
A25: Kontante kapacitetsomkostninger | D25: 123450 | E25: kr | H25: 10
A26: Afskrivninger | D26: 730000 | E26: = - | F26: =SUM(D25:D26) -> 853450 | G26: kr | H26: 11
A28: Ejeraflønning | D28: 450000 | E28: = - | F28: =D28 -> 450000 | H28: 12
A30: Betalingsrettigheder, årligt afkast | D30: 300000 | E30: = + | F30: =D30 -> 300000 | G30: kr | H30: 13
A32: Afkast til forrentning | F32: =F23-F28+F30-F26 -> 2005550 | G32: kr | H32: 14
A34: Beregning af købspris
A35: Investering ved rente på | D35: 5 | E35: pct. | F35: =IF(ISBLANK(D35),"",F32/D35*100) -> 40111000 | G35: kr | H35: 15
A37: + bolig | D37: 2000000 | E37: kr | H37: 16
E38: kr | H38: 17
E39: = + | F39: =SUM(D37:D39) -> 2000000 | G39: kr | H39: 18
A41: - investeringsbehov
E42: kr | H42: 19
E43: kr | H43: 20
E44: = - | F44: =SUM(D42:D44) -> 0 | G44: kr | H44: 21
A46: + overkapaciteter, der kan sælges til dagspris
E47: kr | H47: 22
E48: kr | H48: 23
E49: = + | F49: =SUM(D47:D49) -> 0 | G49: kr | H49: 24
A51: + herlighedsværdi og andre forhold
E52: kr | H52: 25
E53: kr | H53: 26
E54: = + | F54: =SUM(D52:D54) -> 0 | G54: kr | H54: 27
A56: Rentabel pris (afrundet hele titusinder) | F56: =IF(ISBLANK(D35),0.0001,ROUND(F35+F39-F44+F54+F49,-4)) -> 42110000 | G56: kr | H56: 28
A77: 12345678 | B77: 12345678 | C77: 123456 | D77: 123456789 | E77: 123456 | F77: 12345678 | G77: 12 | H77: 12
D98: fjklasdæf
F201: 12345678

Sheet Vurdering
B1: Handelspris - Vurderingsmetoden | W1: Beregninger
B3: Jord, stuehus, andre bygninger, andre aktiver
B4: Dyrkningsjord | D4: 100 | E4: ha á kr. | F4: 150000 | G4: = | H4: =D4*F4 -> 15000000
B5: Jord - skov, eng mv. | D5: 12 | E5: ha á kr. | F5: 45000 | G5: = | H5: =D5*F5 -> 540000
B6: Andre driftsbygninger | H6: 150000
B7: Stuehus | H7: 2000000
B8: Andre boliger
B9: Heste
B10: Herlighedsværdi
B11: I alt | H11: =SUM(H4:H10) -> 17690000
L12: Pr. stiplads
B13: Staldanlæg | J13: Restværdi | L13: nypris | N13: Restlevetid af | P13: levetid i alt
B14: Staldanlæg søer | D14: 101 | E14: pladser á kr. | F14: 11250 | G14: = | H14: =D14*F14 -> 1136250 | J14: =N14/P14*L14 -> 11250 | L14: 15000 | N14: 15 | O14: år | P14: 20 | Q14: år
B15: Staldanlæg smågrise | D15: 102 | E15: pladser á kr. | F15: 500 | G15: = | H15: =D15*F15 -> 51000 | J15: =N15/P15*L15 -> 500 | L15: 2000 | N15: 5 | O15: år | P15: 20 | Q15: år
B16: Staldanlæg slagtesvin | D16: 103 | E16: pladser á kr. | F16: 750 | G16: = | H16: 77250 | J16: 750 | L16: 3000 | N16: 5 | O16: år | P16: 20 | Q16: år
B17: Staldanlæg køer med opdræt | D17: 101 | E17: pladser á kr. | F17: 22500 | G17: = | H17: =D17*F17 -> 2272500 | J17: =N17/P17*L17 -> 22500 | L17: 30000 | N17: 15 | O17: år | P17: 20 | Q17: år
B18: Staldanlæg slagtekalve | D18: 103 | E18: pladser á kr. | F18: 750 | G18: = | H18: =D18*F18 -> 77250 | J18: =N18/P18*L18 -> 750 | L18: 3000 | N18: 5 | O18: år | P18: 20 | Q18: år
B19: Staldanlæg i alt | H19: =SUM(H14:H18) -> 3614250
A21: Konto | B21: Tekst | D21: Antal | F21: Kr./stk. | H21: Værdi
A22: 1460 00 | B22: Orner | D22: 4 | F22: 4000 | H22: =D22*F22 -> 16000
A23: 1461 10 | B23: Søer, drægtige | D23: 250 | H23: 0
A24: 1461 20 | B24: Søer, ikke drægtige | D24: 50 | H24: 0
A25: 1465 00 | B25: Gylte | D25: 25 | H25: 0
A26: 1469 01 | B26: Sopolte over 60 kg | D26: 10 | H26: 0
A27: 1469 11 | B27: Sopolte under 60 kg | D27: 10 | H27: 0
A28: 1472 00 | B28: Smågrise, sohold | H28: 0
A29: 1472 13 | B29: Smågrise 7 - 20 kg | H29: 0
A30: 1472 10 | B30: Smågrise 20 - 30 kg | H30: 0
A31: 1481 11 | B31: Slagtesvin 30 - 45 kg | H31: 0
A32: 1481 10 | B32: Slagtesvin 45 - 60 kg | H32: 0
A33: 1481 00 | B33: Slagtesvin 30 - 60 kg | H33: 0
A34: 1480 12 | B34: Slagtesvin 60 - 75 kg | H34: 0
A35: 1480 11 | B35: Slagtesvin 75 - 90 kg | H35: 0
B37: Besætningsværdi svin i alt | H37: =IF(ISBLANK(G37),SUM(H22:H35),G37) -> 16000
A39: Konto | B39: Tekst | D39: Antal | F39: Kr./stk. | H39: Værdi
A40: 1405 00 | B40: Køer | D40: 100 | H40: =D40*F40 -> 0
A41: 1420 00 | B41: Kvier over 2 år | D41: 10 | H41: 0
A42: 1425 00 | B42: Kvier 1 - 2 år | D42: 40 | H42: 0
A43: 1430 00 | B43: Kviekalve u. 1 år | D43: 40 | H43: 0
A44: 1450 01 | B44: Tyrekalve 1/2 – 1 år | H44: 0
A45: 1450 02 | B45: Tyrekalve u. 1/2 år | H45: 0
B46: Stude | D46: 20 | F46: 5000 | H46: 100000
H47: 0
B49: Besætningsværdi kvæg i alt | H49: =IF(ISBLANK(G49),SUM(H40:H47),G49) -> 100000
B52: Betalingsrettigheder | D52: 1000000 | E52: stk á kr. | F52: 0.72 | H52: =D52*F52 -> 720000
B53: Andre rettigheder | D53: 100 | E53: stk á kr. | F53: 500 | H53: =D53*F53 -> 50000
B55: Maskiner | H55: =IF(ISBLANK(G55),SUM(H57:H68),G55) -> 1025000
B56: Tekst | H56: Kr./stk.
B57: Traktor | H57: 750000
B58: såsæt | H58: 200000
B59: sprøjte | H59: 75000
B70: Beholdninger
B71: Beholdninger egen avl | D71: 20000 | E71: FE/kg á kr. | F71: 1.5 | G71: = | H71: =D71*F71 -> 30000
B72: Salgsbeholdninger | D72: 50000 | E72: FE/kg á kr. | F72: 1.4 | G72: = | H72: 70000
E73: FE/kg á kr. | G73: = | H73: 0
G74: = | H74: =D74*F74 -> 0
B76: Fradrag for akut investeringsbehov (husk minus)
H77: -50000
B79: I alt sum af enkeltaktivers værdi (afr. hele titusinder) | H79: =ROUND(H11+H19+H37+H49+H52+H53+H55+H71+H72+H73+H74+H77,-4) -> 23270000

Sheet Noter
